bitfinex/quotes_SOLUSD_20250907
["timestamp","ask_amount","ask_price","bid_price","bid_amount"]
[1757257300655,80.73592714,203.57,203.56,1e-08]
[1757257302875,85.64824231,203.57,203.56,1e-08]
[1757257304249,47.42824231,203.57,203.56,1e-08]
[1757257304445,84.98824231,203.57,203.56,1e-08]
[1757257304657,85.64824231,203.57,203.56,1e-08]
[1757257306670,48.08824231,203.57,203.56,1e-08]
[1757257306871,85.64824231,203.57,203.56,1e-08]
[1757257310465,82.06790918,203.57,203.56,1e-08]
[1757257310679,84.98824231,203.57,203.56,1e-08]
[1757257311372,47.42824231,203.57,203.56,1e-08]
[1757257311572,84.98824231,203.57,203.56,0.67000001]
[1757257312452,82.06790918,203.57,203.56,0.67000001]
[1757257312659,84.98824231,203.57,203.56,0.67000001]
[1757257313068,84.98824231,203.57,203.56,1e-08]
[1757257313477,68.47231517,203.57,203.56,0.67000001]
[1757257313670,30.97231517,203.57,203.56,0.67000001]
[1757257313870,68.53231517,203.57,203.56,0.67000001]
[1757257314260,4.97231517,203.57,203.56,0.67000001]
[1757257314461,68.53231517,203.57,203.56,0.67000001]
[1757257316472,30.97231517,203.57,203.56,0.67000001]
[1757257316688,68.53231517,203.57,203.56,0.67000001]
[1757257316979,71.4526483,203.57,203.56,0.67000001]
[1757257317964,71.4526483,203.57,203.56,1e-08]
[1757257318163,85.04824231,203.57,203.56,1e-08]
[1757257318971,82.12790918,203.57,203.56,1e-08]
[1757257319187,85.04824231,203.57,203.56,1e-08]
[1757257319379,82.12790918,203.57,203.56,1e-08]
[1757257319584,85.04824231,203.57,203.56,0.67000001]
[1757257319982,85.04824231,203.57,203.56,1e-08]
[1757257324607,47.48824231,203.57,203.56,0.67000001]
[1757257325085,85.04824231,203.57,203.56,0.67000001]
[1757257325496,85.04824231,203.57,203.56,1e-08]
[1757257329400,85.04824231,203.57,203.56,0.71000001]
[1757257329778,85.04824231,203.57,203.56,1e-08]
[1757257330784,85.04824231,203.57,203.56,0.71000001]
[1757257331108,85.04824231,203.57,203.56,1e-08]
[1757257331596,30.97231517,203.57,203.56,0.71000001]
[1757257331900,71.4526483,203.57,203.56,0.71000001]
[1757257335498,30.97231517,203.57,203.56,0.71000001]
[1757257335696,68.53231517,203.57,203.56,0.71000001]
[1757257336901,71.4526483,203.57,203.56,0.71000001]
[1757257339102,68.53231517,203.57,203.56,0.71000001]
[1757257339302,71.4526483,203.57,203.56,0.71000001]
[1757257340203,68.53231517,203.57,203.56,0.71000001]
[1757257340408,0.06,203.57,203.56,0.71000001]
[1757257340700,37.62,203.57,203.56,0.71000001]
[1757257340881,0.06,203.57,203.56,0.71000001]
[1757257348014,0.06,203.57,203.56,1e-08]
[1757257348309,37.62,203.57,203.56,1e-08]
[1757257348696,37.6,203.57,203.56,1e-08]
[1757257351115,0.06,203.57,203.56,1e-08]
[1757257351299,37.6,203.57,203.56,1e-08]
[1757257351612,42.51231517,203.57,203.56,1e-08]
[1757257354414,4.97231517,203.57,203.56,1e-08]
[1757257354615,42.51231517,203.57,203.56,1e-08]
[1757257356815,4.97231517,203.57,203.56,1e-08]
[1757257356994,42.51231517,203.57,203.56,1e-08]
[1757257357514,37.6,203.57,203.56,1e-08]
[1757257358605,42.51231517,203.57,203.56,1e-08]
[1757257362418,37.6,203.57,203.56,1e-08]
[1757257365114,0.06,203.57,203.56,0.72000001]
[1757257368708,0.06,203.57,203.56,0.72000001]
[1757257368901,0.06,203.57,203.56,5.6325565]
[1757257372205,0.06,203.57,203.56,0.72000001]
[1757257377130,0.06,203.57,203.56,5.6325565]
[1757257379422,0.06,203.57,203.56,45.22815051]
[1757257380038,0.06,203.57,203.56,82.76815051]
[1757257380039,0.03119784,203.57,203.56,82.76815051]
[1757257384522,0.03119784,203.57,203.56,69.1725565]
[1757257391027,0.03119784,203.57,203.56,31.6325565]
[1757257391353,0.03119784,203.57,203.56,69.1725565]
[1757257391648,0.03119784,203.57,203.56,31.6325565]
[1757257391832,0.03119784,203.57,203.56,69.1725565]
[1757257393551,0.03119784,203.57,203.56,31.6325565]
[1757257393741,0.03119784,203.57,203.56,69.1725565]
[1757257396254,0.71119784,203.57,203.56,1e-08]
[1757257402135,0.03119784,203.57,203.56,1e-08]
[1757257402329,0.03119784,203.57,203.56,0.72000001]
[1757257404663,0.03119784,203.57,203.56,4.9125565]
[1757257404846,0.03119784,203.57,203.56,5.6325565]
[1757257406660,0.03119784,203.57,203.56,4.9125565]
[1757257406866,0.03119784,203.57,203.56,1e-08]
[1757257407747,0.03119784,203.57,203.56,0.72000001]
[1757257409242,0.03119784,203.57,203.56,5.6325565]
[1757257409957,0.03119784,203.57,203.56,4.9125565]
[1757257411435,0.03119784,203.57,203.56,5.6325565]
[1757257413348,0.01119784,203.57,203.56,5.6325565]
[1757257422173,0.01119784,203.57,203.56,19.22815051]
[1757257422557,0.06,203.6,203.57,13.59559401]
[1757257422763,0.06,203.6,203.58,37.52]
[1757257422964,0.06,203.6,203.58,38.18]
[1757257425674,0.06,203.6,203.59,4.9118326]
[1757257425974,0.06,203.6,203.59,5.5718326]
[1757257426363,0.06,203.6,203.59,19.65860987]
[1757257426564,0.03149896,203.6,203.59,19.65860987]
[1757257427779,0.06,203.62,203.61,13.59559401]
[1757257427959,0.06,203.62,203.61,77.60672902]
[1757257428155,0.06,203.62,203.61,78.26672902]
[1757257429982,0.06,203.62,203.61,83.17807915]
[1757257431788,0.06,203.62,203.61,88.09107915]
[1757257432075,0.06,203.62,203.61,83.17807915]
[1757257436828,0.06,203.64,203.62,13.59559401]
[1757257436983,0.06,203.64,203.63,37.52]
[1757257437289,0.06,203.64,203.63,38.18]
[1757257438883,0.06,203.64,203.63,43.09086775]
[1757257439377,0.06,203.64,203.63,42.43086775]
[1757257441306,0.06,203.64,203.63,46.32156465]
[1757257441491,0.06,203.64,203.63,46.98156465]
[1757257441803,0.06,203.64,203.63,60.57715866]
[1757257442101,0.06,203.65,203.64,13.59559401]
[1757257442509,0.06,203.65,203.64,14.25559401]
[1757257443602,0.06,203.65,203.64,56.0262206]
[1757257443807,0.06,203.65,203.64,56.6862206]
[1757257444384,0.10941387,203.66,203.64,56.6862206]
[1757257444593,0.10941387,203.66,203.65,1.15103854]
[1757257445689,0.10941387,203.66,203.65,6.061424]
[1757257447907,0.10941387,203.66,203.65,8.02601229]
[1757257450287,0.10941387,203.66,203.65,7.36601229]
[1757257451097,0.10941387,203.66,203.65,8.03601229]
[1757257451300,0.10941387,203.66,203.65,7.36601229]
[1757257454313,0.10941387,203.66,203.65,44.86601229]
[1757257454692,0.10941387,203.66,203.65,45.53601229]
[1757257455304,0.10941387,203.66,203.65,44.86601229]
[1757257457906,0.10941387,203.66,203.65,21.6316063]
[1757257458109,0.10941387,203.66,203.65,20.9616063]
[1757257458408,0.76941387,203.66,203.65,6.87497375]
[1757257458702,0.76941387,203.66,203.65,1.96458829]
[1757257458904,0.76941387,203.66,203.65,37.5]
[1757257469218,0.76941387,203.66,203.65,42.41038546]
[1757257470105,0.76941387,203.66,203.65,37.5]
[1757257474223,0.10941387,203.66,203.65,37.5]
[1757257474398,0.10941387,203.66,203.65,42.41038546]
[1757257475115,0.10941387,203.66,203.65,43.07038546]
[1757257476107,0.10941387,203.66,203.65,43.10038546]
[1757257484365,0.10941387,203.66,203.65,42.44038546]
[1757257484538,0.10941387,203.66,203.65,43.10038546]
[1757257484719,0.10941387,203.66,203.65,42.44038546]
[1757257485621,0.82941387,203.66,203.65,0.03]
[1757257485825,0.82941387,203.66,203.65,37.53]
[1757257489247,0.10941387,203.66,203.65,37.53]
[1757257489947,0.10941387,203.66,203.65,42.44038546]
[1757257494146,0.10941387,203.66,203.65,43.10038546]
[1757257494652,0.10941387,203.66,203.65,42.44038546]
[1757257496545,0.10941387,203.66,203.65,37.53]
[1757257498051,0.10941387,203.66,203.65,42.44038546]
[1757257499659,0.82941387,203.66,203.65,37.53]
[1757257499840,0.70097502,203.66,203.65,0.03]
[1757257501252,0.06,203.67,203.65,0.03]
[1757257502165,0.06,203.67,203.65,0.69]
[1757257502335,0.06,203.67,203.66,37.5]
[1757257502736,0.06,203.67,203.66,38.16]
[1757257503859,0.06,203.67,203.66,43.07014435]
[1757257504455,0.06,203.68,203.67,13.59559401]
[1757257504654,0.06,203.68,203.67,40.74658433]
[1757257504961,0.06,203.69,203.67,42.71088319]
[1757257505262,0.06,203.69,203.68,38.16]
[1757257505767,0.06,203.69,203.68,40.12429886]
[1757257506145,0.06,203.69,203.68,45.03396107]
[1757257512263,0.06,203.69,203.68,58.62955508]
[1757257513261,0.06,203.7,203.69,39.59559401]
[1757257513567,0.06,203.7,203.69,40.25559401]
[1757257514065,0.06,203.7,203.69,47.12912115]
[1757257515379,0.06,203.71,203.7,39.59559401]
[1757257515660,0.06,203.73,203.71,13.59559401]
[1757257515866,0.06,203.73,203.71,14.25559401]
[1757257516042,0.06,203.73,203.71,19.16453318]
[1757257516657,0.06,203.73,203.71,21.12844627]
[1757257519275,0.06,203.73,203.71,58.60844627]
[1757257520566,0.06,203.73,203.71,6.87285226]
[1757257520747,0.74,203.72,203.71,39.44391309]
[1757257525769,0.74,203.72,203.71,44.35285226]
[1757257526365,0.06,203.72,203.71,6.87285226]
[1757257526576,0.06,203.72,203.71,44.35285226]
[1757257528173,0.74,203.72,203.71,44.35285226]
[1757257528875,0.74,203.72,203.71,44.38285226]
[1757257529072,0.06,203.72,203.71,44.38285226]
[1757257532777,0.06,203.72,203.71,6.90285226]
[1757257533075,0.06,203.72,203.71,44.38285226]
[1757257533076,0.74,203.72,203.71,44.38285226]
[1757257533272,0.06,203.72,203.71,44.38285226]
[1757257533674,0.06,203.72,203.71,6.90285226]
[1757257533873,0.74,203.72,203.71,39.47391309]
[1757257534400,0.74,203.72,203.71,44.38285226]
[1757257534557,0.06,203.72,203.71,44.38285226]
[1757257535560,0.06,203.72,203.71,1.99391309]
[1757257535760,0.78,203.72,203.71,37.51]
[1757257538078,0.78,203.72,203.71,0.03]
[1757257538479,8.60192796,203.72,203.71,0.03]
[1757257539386,10.5669023,203.72,203.71,0.03]
[1757257539968,24.16249631,203.72,203.71,0.03]
[1757257540881,62.16249631,203.72,203.71,0.03]
[1757257542688,73.81541531,203.72,203.71,0.03]
[1757257543184,62.16249631,203.72,203.71,0.03]
[1757257547384,21.24926656,203.72,203.71,0.03]
[1757257547597,7.65367255,203.72,203.71,0.03]
[1757257547960,10.5669023,203.72,203.71,0.03]
[1757257548364,24.16249631,203.72,203.71,0.03]
[1757257549584,21.24926656,203.72,203.71,0.03]
[1757257549773,24.16249631,203.72,203.71,0.03]
[1757257552987,62.58249631,203.72,203.71,0.03]
[1757257553484,20.52926656,203.72,203.71,0.03]
[1757257553694,23.44249631,203.72,203.71,0.03]
[1757257553888,62.58249631,203.72,203.71,0.03]
[1757257554279,61.86249631,203.72,203.71,0.03]
[1757257554592,59.66926656,203.72,203.71,0.03]
[1757257554766,62.58249631,203.72,203.71,0.03]
[1757257558892,59.66926656,203.72,203.71,0.03]
[1757257559094,62.58249631,203.72,203.71,0.03]
[1757257559393,59.66926656,203.72,203.71,0.03]
[1757257559588,62.58249631,203.72,203.71,0.03]
[1757257560088,59.66926656,203.72,203.71,0.03]
[1757257560279,62.58249631,203.72,203.71,0.03]
[1757257561493,61.86249631,203.72,203.71,0.03]
[1757257561700,45.35367255,203.72,203.71,0.73]
[1757257561875,48.9869023,203.72,203.71,0.03]
[1757257562074,48.2669023,203.72,203.71,0.03]
[1757257562493,45.35367255,203.72,203.71,0.03]
[1757257562691,48.2669023,203.72,203.71,0.03]
[1757257565199,48.9469023,203.72,203.71,0.03]
[1757257565489,46.03367255,203.72,203.71,0.03]
[1757257565697,48.2669023,203.72,203.71,0.03]
[1757257566089,45.35367255,203.72,203.71,0.03]
[1757257566274,48.2669023,203.72,203.71,0.03]
[1757257567311,6.93367255,203.72,203.71,0.03]
[1757257567604,40.46497434,203.72,203.71,0.73]
[1757257569293,2.02497434,203.72,203.71,0.73]
[1757257569492,0.06,203.72,203.71,0.73]
[1757257572492,0.06,203.72,203.71,5.63893917]
[1757257573594,0.06,203.72,203.71,7.60304514]
[1757257574297,0.06,203.72,203.71,21.19863915]
[1757257575796,0.06,203.72,203.71,2.69410597]
[1757257575998,0.06,203.72,203.71,0.03]
[1757257576782,0.74,203.72,203.71,0.03]
[1757257578004,5.64869821,203.72,203.71,0.03]
[1757257579602,0.06,203.72,203.71,0.03]
[1757257579805,0.06,203.72,203.71,0.73]
[1757257580495,2.0247813,203.72,203.71,0.73]
[1757257583809,0.06,203.72,203.71,0.73]
[1757257584003,2.0847813,203.72,203.71,0.73]
[1757257584204,0.06,203.72,203.71,0.73]
[1757257584585,0.06,203.72,203.71,0.03]
[1757257584789,4.96869821,203.72,203.71,0.03]
[1757257585290,6.933383,203.72,203.71,0.03]
[1757257587004,7.613383,203.72,203.71,0.03]
[1757257588101,6.933383,203.72,203.71,0.03]
[1757257588293,0.06,203.72,203.71,0.73]
[1757257592200,0.06,203.72,203.71,5.63893917]
[1757257599209,0.06,203.72,203.71,7.60294869]
[1757257599406,0.06,203.72,203.71,21.1985427]
[1757257599611,0.06,203.72,203.71,21.68943661]
[1757257599921,0.06,203.73,203.72,13.59559401]
[1757257600125,0.06,203.76,203.75,13.59559401]
[1757257600310,0.06,203.76,203.75,51.89559401]
[1757257600513,0.06,203.76,203.75,52.56559401]
[1757257600818,1.96352748,203.83,203.75,57.47356947]
[1757257601003,1.96352748,203.83,203.77,26.0]
[1757257601204,1.96352748,203.83,203.77,39.59559401]
[1757257601421,1.96352748,203.83,203.77,40.26559401]
[1757257601620,0.72,203.88,203.77,40.26559401]
[1757257601818,0.72,203.88,203.78,0.67]
[1757257602126,1.96352748,203.86,203.78,0.67]
[1757257602623,2.68352748,203.86,203.78,38.95]
[1757257602835,1.96352748,203.86,203.78,43.85725291]
[1757257605525,0.72,203.85,203.78,43.85725291]
[1757257607018,2.68352748,203.85,203.78,43.85725291]
[1757257608016,1.96352748,203.85,203.78,43.85725291]
[1757257608223,0.72,203.84,203.78,43.85725291]
[1757257608530,0.72,203.84,203.78,43.79725291]
[1757257609231,0.72,203.84,203.78,43.77725291]
[1757257609931,1.96352748,203.85,203.78,5.57725291]
[1757257610229,0.72,203.88,203.79,13.59559401]
[1757257610620,0.72,203.88,203.8,0.67]
[1757257611009,0.72,203.88,203.81,38.2]
[1757257611236,0.72,203.88,203.82,5.57628986]
[1757257611537,0.72,203.88,203.83,0.67]
[1757257611708,0.72,203.88,203.84,38.87]
[1757257612928,0.2,203.9,203.85,0.67]
[1757257612929,0.92,203.9,203.85,0.67]
[1757257613131,0.72,203.89,203.85,0.67]
[1757257613309,0.72,203.89,203.85,5.57542796]
[1757257614216,0.2,203.9,203.85,4.90542796]
[1757257614531,0.72,203.88,203.84,43.10577175]
[1757257614828,0.72,203.88,203.84,43.77577175]
[1757257615031,0.72,203.88,203.85,38.18]
[1757257616238,0.72,203.88,203.85,38.85]
[1757257616637,0.72,203.88,203.85,0.67]
[1757257616940,0.72,203.88,203.86,38.18]
[1757257617121,0.72,203.88,203.85,0.67]
[1757257617325,0.72,203.88,203.86,38.16]
[1757257618042,0.72,203.88,203.85,0.67]
[1757257618226,0.72,203.88,203.86,38.14]
[1757257619518,0.06,203.89,203.86,38.14]
[1757257619742,0.78,203.89,203.86,38.14]
[1757257620443,0.06,203.89,203.87,0.67]
[1757257620653,0.78,203.89,203.86,38.14]
[1757257622350,0.78,203.89,203.86,38.14]
[1757257624224,0.72,203.88,203.83,31.57393764]
[1757257624431,0.72,203.87,203.84,38.1]
[1757257624630,4.96464666,203.89,203.84,38.1]
[1757257624631,0.72,203.86,203.84,38.1]
[1757257624928,0.72,203.85,203.82,26.0]
[1757257625137,0.72,203.85,203.83,38.1]
[1757257626026,0.72,203.85,203.81,0.7]
[1757257626225,4.90540411,203.86,203.82,38.08]
[1757257626226,0.72,203.84,203.82,38.08]
[1757257626432,0.72,203.84,203.79,44.50247182]
[1757257626433,4.90540411,203.86,203.79,26.7]
[1757257626640,0.72,203.83,203.78,0.03]
[1757257626835,0.72,203.83,203.79,38.08]
[1757257627151,0.72,203.82,203.79,38.78]
[1757257627326,4.90540411,203.86,203.8,0.7]
[1757257627327,12.98309087,203.85,203.8,0.7]
[1757257627534,12.98309087,203.85,203.81,0.7]
[1757257627535,0.72,203.85,203.81,0.7]
[1757257627934,0.72,203.84,203.79,38.78]
[1757257628261,0.72,203.83,203.79,38.78]
[1757257628755,0.72,203.82,203.8,38.08]
[1757257629132,0.72,203.82,203.78,0.03]
[1757257629353,0.72,203.82,203.79,38.08]
[1757257629948,5.62629675,203.82,203.79,38.08]
[1757257630444,5.62629675,203.82,203.79,38.78]
[1757257631236,0.72,203.82,203.79,38.78]
[1757257633850,0.72,203.82,203.79,38.81]
[1757257634647,4.90609924,203.83,203.79,38.81]
[1757257634946,5.62609924,203.83,203.79,38.81]
[1757257636653,4.90609924,203.83,203.79,0.03]
[1757257636956,0.72,203.82,203.79,38.75]
[1757257637258,0.72,203.81,203.79,0.03]
[1757257638248,0.72,203.8,203.79,0.03]
[1757257638640,5.62677134,203.8,203.79,0.03]
[1757257642656,7.59078086,203.8,203.79,0.03]
[1757257643660,12.14512504,203.8,203.79,0.03]
[1757257643963,25.74071905,203.8,203.79,0.03]
[1757257650254,63.78071905,203.8,203.79,0.03]
[1757257651741,21.18637487,203.8,203.79,0.03]
[1757257651946,58.48637487,203.8,203.79,0.03]
[1757257652173,59.20637487,203.8,203.79,0.03]
[1757257652369,6.87078086,203.8,203.79,0.03]
[1757257652860,1.96400952,203.8,203.79,0.73]
[1757257655362,4.90630747,203.82,203.79,0.73]
[1757257655562,4.96611506,203.83,203.79,0.73]
[1757257655877,4.96611506,203.83,203.8,0.68]
[1757257656089,0.06,203.83,203.81,0.68]
[1757257656449,1.96381668,203.82,203.81,0.68]
[1757257666364,1.96381668,203.82,203.8,0.68]
[1757257671888,2.02381668,203.82,203.8,0.68]
[1757257672886,2.02381668,203.82,203.81,0.68]
[1757257673389,0.06,203.82,203.81,0.68]
[1757257673891,0.06,203.82,203.81,5.58653059]
[1757257676387,0.06,203.82,203.81,7.68782493]
[1757257677382,0.06,203.82,203.81,5.58653059]
[1757257683906,0.06,203.82,203.81,0.68]
[1757257684107,0.06,203.82,203.81,5.58653059]
[1757257689007,0.06,203.82,203.79,5.65696485]
[1757257689211,0.06,203.82,203.81,37.8]
[1757257690026,0.76,203.82,203.8,37.8]
[1757257690811,0.06,203.82,203.8,38.52]
[1757257691329,0.06,203.82,203.8,37.8]
[1757257691716,0.76,203.82,203.8,37.8]
[1757257693838,0.06,203.82,203.8,37.8]
[1757257694043,0.06,203.82,203.8,38.52]
[1757257695523,0.06,203.82,203.8,37.8]
[1757257695939,0.76,203.82,203.8,37.8]
[1757257696444,0.06,203.82,203.8,37.8]
[1757257696745,0.06,203.82,203.8,38.52]
[1757257700945,0.06,203.82,203.8,0.72]
[1757257701138,0.06,203.82,203.8,38.46]
[1757257701644,0.06,203.82,203.8,37.74]
[1757257702141,0.06,203.82,203.8,38.46]
[1757257702758,0.06,203.82,203.81,0.72]
[1757257702954,0.06,203.82,203.8,38.46]
[1757257710350,0.06,203.82,203.81,0.72]
[1757257711954,0.06,203.82,203.8,37.74]
[1757257712257,0.06,203.82,203.8,38.46]
[1757257712552,0.06,203.82,203.81,0.72]
[1757257717757,0.06,203.82,203.79,0.03]
[1757257717956,0.06,203.82,203.8,38.38]
[1757257718643,0.06,203.82,203.8,37.72]
[1757257718842,0.06,203.82,203.81,0.66]
[1757257719963,4.5486875,203.88,203.81,0.66]
[1757257720149,5.55584016,203.86,203.81,0.66]
[1757257720733,5.55584016,203.86,203.79,0.03]
[1757257720938,4.5486875,203.84,203.79,0.03]
[1757257721138,4.5486875,203.82,203.79,0.03]
[1757257721663,12.53311462,203.82,203.79,0.03]
[1757257721845,5.55653059,203.81,203.79,0.03]
[1757257724667,10.10521809,203.81,203.79,0.03]
[1757257725581,18.08964521,203.81,203.79,0.03]
[1757257728289,13.54095771,203.81,203.79,0.03]
[1757257728458,18.08964521,203.81,203.79,0.03]
[1757257728789,13.54095771,203.81,203.79,0.03]
[1757257729160,0.65,203.8,203.79,0.03]
[1757257730260,5.55677134,203.8,203.79,0.03]
[1757257735374,4.90677134,203.8,203.79,0.03]
[1757257736181,5.55677134,203.8,203.79,0.03]
[1757257736868,7.52078087,203.8,203.79,0.03]
[1757257737774,12.06946837,203.8,203.79,0.03]
[1757257738273,25.66506238,203.8,203.79,0.03]
[1757257738470,6.87078087,203.8,203.79,0.03]
[1757257738677,6.87078087,203.8,203.79,0.69]
[1757257739493,6.87078087,203.8,203.79,0.03]
[1757257741178,4.90638342,203.82,203.79,0.69]
[1757257741378,1.9639131,203.81,203.79,0.69]
[1757257742469,5.1986875,203.8,203.79,0.03]
[1757257742675,1.9639131,203.81,203.79,0.03]
[1757257742676,7.1626006,203.81,203.79,0.03]
[1757257743062,4.90677134,203.8,203.79,0.03]
[1757257744081,6.87087731,203.8,203.79,0.03]
[1757257745096,1.96410597,203.8,203.79,0.03]
[1757257745792,1.96410597,203.8,203.79,0.73]
[1757257746383,6.87087731,203.8,203.79,0.03]
[1757257746687,1.96410597,203.8,203.79,0.73]
[1757257749696,1.96410597,203.8,203.79,0.03]
[1757257749898,6.87087731,203.8,203.79,0.03]
[1757257751397,1.96410597,203.8,203.79,0.03]
[1757257753996,1.96410597,203.8,203.79,0.73]
[1757257754375,1.96410597,203.8,203.79,0.03]
[1757257756788,1.96410597,203.8,203.79,0.73]
[1757257757300,1.96410597,203.8,203.79,0.03]
[1757257759677,1.96410597,203.8,203.79,0.73]
[1757257764501,136.8486875,203.83,203.79,0.73]
[1757257764502,132.3,203.83,203.79,0.73]
[1757257764708,4.90748379,203.81,203.79,0.73]
[1757257765113,4.90748379,203.81,203.79,5.63694825]
[1757257765411,4.90748379,203.81,203.8,0.7]
[1757257765609,42.62490096,203.88,203.8,0.7]
[1757257766191,4.90490096,203.88,203.81,4.90653059]
[1757257766393,4.93694825,203.86,203.82,0.7]
[1757257769902,4.93694825,203.86,203.8,4.9067431]
[1757257770113,4.93694825,203.86,203.83,0.7]
[1757257771493,9.84231946,203.86,203.83,0.7]
[1757257773793,10.50231946,203.86,203.83,0.7]
[1757257777212,5.59694825,203.86,203.83,0.7]
[1757257777417,5.59694825,203.86,203.83,0.73]
[1757257778009,10.502303,203.86,203.83,0.73]
[1757257782607,4.93694825,203.86,203.83,0.73]
[1757257784823,9.84231733,203.86,203.83,0.73]
[1757257785001,10.50231733,203.86,203.83,0.73]
[1757257787423,3.57157043,203.85,203.83,0.03]
[1757257787807,8.50825862,203.85,203.83,0.03]
[1757257788008,7.84825862,203.85,203.83,0.03]
[1757257788192,3.57157043,203.84,203.83,0.03]
[1757257788698,5.5352907,203.84,203.83,0.03]
[1757257789426,10.44109917,203.84,203.83,0.03]
[1757257790020,24.03669318,203.84,203.83,0.03]
[1757257797895,61.71669318,203.84,203.83,0.03]
[1757257802127,23.37669318,203.84,203.83,0.03]
[1757257802306,61.05669318,203.84,203.83,0.03]
[1757257805330,58.14512275,203.84,203.83,0.03]
[1757257805533,61.05669318,203.84,203.83,0.03]
[1757257805829,61.71669318,203.84,203.83,0.03]
[1757257807235,87.71669318,203.84,203.83,0.03]
[1757257807942,61.71669318,203.84,203.83,0.03]
[1757257813520,21.12512275,203.84,203.83,0.03]
[1757257813841,61.71669318,203.84,203.83,0.03]
[1757257817737,61.71669318,203.84,203.8,0.03]
[1757257817738,39.59559401,203.8,203.79,0.03]
[1757257817937,80.16716444,203.8,203.79,0.69]
[1757257818350,82.13165625,203.8,203.79,0.69]
[1757257818528,82.13165625,203.8,203.79,0.03]
[1757257818845,82.13165625,203.8,203.79,0.69]
[1757257819020,82.13165625,203.8,203.79,0.03]
[1757257819640,87.03842759,203.8,203.79,0.03]
[1757257821050,84.12685716,203.8,203.79,0.03]
[1757257821345,99.96535595,203.8,203.74,0.69]
[1757257821659,99.96535595,203.8,203.75,1e-08]
[1757257821660,4.90773458,203.76,203.75,1e-08]
[1757257821953,45.47930501,203.76,203.75,1e-08]
[1757257823026,47.44418282,203.76,203.75,1e-08]
[1757257829254,9.78418282,203.76,203.75,1e-08]
[1757257829435,61.03977683,203.76,203.75,1e-08]
[1757257830555,23.37977683,203.76,203.75,1e-08]
[1757257830849,61.05977683,203.76,203.75,0.66000001]
[1757257831030,61.05977683,203.76,203.75,1e-08]
[1757257832253,23.37977683,203.76,203.75,1e-08]
[1757257832455,61.05977683,203.76,203.75,1e-08]
[1757257836363,62.7044355,203.76,203.75,1e-08]
[1757257838852,25.0244355,203.76,203.75,1e-08]
[1757257839062,62.6844355,203.76,203.75,0.69000001]
[1757257840849,20.4682064,203.76,203.75,0.69000001]
[1757257841046,62.6844355,203.76,203.75,0.69000001]
[1757257845865,62.7444355,203.76,203.75,0.69000001]
[1757257850577,20.5282064,203.76,203.75,0.69000001]
[1757257850761,62.7444355,203.76,203.75,0.69000001]
[1757257855376,62.7444355,203.76,203.75,1e-08]
[1757257858880,62.7444355,203.76,203.75,0.69000001]
[1757257864181,58.1882064,203.76,203.75,0.69000001]
[1757257864388,62.7444355,203.76,203.75,0.69000001]
[1757257869894,62.7444355,203.76,203.75,1e-08]
[1757257872396,62.7444355,203.76,203.75,1e-08]
[1757257876880,63.4044355,203.76,203.75,1e-08]
[1757257877086,67.08031931,203.76,203.75,1e-08]
[1757257877799,66.42031931,203.76,203.75,1e-08]
[1757257878298,28.76031931,203.76,203.75,1e-08]
[1757257878501,66.40031931,203.76,203.75,1e-08]
[1757257891714,67.06031931,203.76,203.75,1e-08]
[1757257892903,39.59559401,203.73,203.72,0.03]
[1757257893089,81.77182311,203.73,203.72,0.03]
[1757257893400,86.68028038,203.73,203.72,0.03]
[1757257893798,88.64554433,203.73,203.72,0.03]